Cogmind - Beta 13 @@@ ROGUE MODE // 2024.05.17 @ 18:06:50 Player: CONM Result: Destroyed by D-53 Grenadier with Mini Grenade Launcher Performance ------------- Evolutions (0) 0 Regions Visited (2) 400 Robots Destroyed (5) 25 Value Destroyed (70) 70 Prototype IDs (0) 0 Alien Tech Used (0) 0 Bonus (0) 0 TOTAL SCORE: 495 Bonus ------- None Cogmind --------- Core Integrity 0/250 Matter 295/300 Energy 100/100 System Corruption 0% Temperature Cool (0) Movement Core (200) Ox3 Location -10/Mines Parts ------- > --- POWER (1) -------- (None) > --- PROPULSION (2) --- (None) > --- UTILITY (2) ------ Medium Storage Unit > --- WEAPON (2) ------- Light Assault Rifle > --- INVENTORY (10) --- Light Ion Engine Heat Sink Medium Matter Pod (100) Improved Terrain Scanner Seismic Detector Transport Network Coupler Beam Cannon Peak State ------------ > --- POWER ------------ Ion Engine > --- PROPULSION ------- Light Treads Light Treads > --- UTILITY ---------- Small Storage Unit Seismic Detector > --- WEAPON ----------- Beam Cannon Light Assault Rifle > --- INVENTORY -------- Light Ion Engine Wheel Wheel Medium Matter Pod Improved Terrain Scanner Transport Network Coupler Light Armor Plating Beam Cannon [Rating: 8] Favorites ----------- Power Ion Engine Engine Ion Engine Propulsion Light Treads Treads Light Treads Wheel Wheel Utility Small Storage Unit Device Seismic Detector Storage Small Storage Unit Protection Light Armor Plating Weapon Light Assault Rifle Energy Cannon Beam Cannon Ballistic Gun Light Assault Rifle Build | -11 -10 -10 ------- Run | Yrd Mat Min Slots Evolved . | . . . Power . | . . . Propulsion . | . . . Utility . | . . . Weapon . | . . . Parts Attached 11 | 6 3 2 Power 1 | 1 . . Engine 1 | 1 . . Core . | . . . Reactor . | . . . Propulsion 4 | 2 . 2 Treads 2 | 2 . . Leg . | . . . Wheel 2 | . . 2 Hover . | . . . Flight . | . . . Utility 4 | 2 2 . Device 1 | 1 . . Storage 2 | 1 1 . Processor . | . . . Hackware . | . . . Protection 1 | . 1 . Artifact . | . . . Weapon 2 | 1 1 . Energy Gun . | . . . Energy Cannon 1 | . 1 . Ballistic Gun 1 | 1 . . Ballistic Cannon . | . . . Launcher . | . . . Special Weapon . | . . . Impact Weapon . | . . . Slashing Weapon . | . . . Piercing Weapon . | . . . Special Melee Weapon . | . . . Unidentified Prototypes . | . . . Parts Lost 7 | . . 7 Power 1 | . . 1 Propulsion 4 | . . 4 Utility 1 | . . 1 Weapon 1 | . . 1 Highest Loss Streak 7 | . . 7 To Critical Strikes . | . . . Average Slot Usage (%) 95 | . 94 97 Engine 14 | . 14 14 Treads 27 | . 28 26 Device 9 | . 13 . Storage 14 | . 14 14 Protection 4 | . . 13 Energy Cannon 10 | . 9 13 Ballistic Gun 14 | . 14 14 Naked Turns . | . . . Heaviest Build 22 | 12 22 22 Greatest Support 40 | 40 40 40 Greatest Overweight (x) 3 | 1 . 3 Average Overweight (x) . | . . . Largest Inventory Capacity 10 | 8 10 10 Average Capacity 8 | 7 8 10 Most Carried 9 | 4 9 9 Average Carried 6 | 2 6 8 Final Capacity 10 | 8 10 10 Final Carried 9 | 4 9 7 Class Distribution -------------------- 100% | Mutant Dominant Class ---------------- Mutant | -10/Materials Mutant | -10/Mines Resources | -11 -10 -10 ----------- Run | Yrd Mat Min Matter Collected 273 | 208 65 . Remotely . | . . . Salvage Created 168 | 60 108 . Parts 13 | 9 4 . Haulers Intercepted 1 | . 1 . Recyclers Shooed 1 | 1 . . Parts Field Recycled . | . . . Retrieved Matter . | . . . Parts Self-Destructed . | . . . Prevented . | . . . Kills | -11 -10 -10 ------- Run | Yrd Mat Min Combat Hostiles Destroyed 1 | . 1 . Cannons 1 | . 1 . Classes Destroyed 3 | 1 2 . Tunneler 3 | 3 . . Hauler 1 | . 1 . Grunt 1 | . 1 . Best Kill Streak 1 | 1 1 . Combat Bots Only 1 | . 1 . Max Kills in Single Turn 1 | 1 1 . Gunslinging . | . . . Exploded . | . . . Melee . | . . . Uniques/NPCs Destroyed . | . . . Combat | -11 -10 -10 -------- Run | Yrd Mat Min Hostile Shots Fired 42 | . 10 32 Missed 7 | . 2 5 Damage Taken 988 | . 109 879 Core 273 | . 18 255 Absorbed by Shields . | . . . Core Remaining (%) 100 | 100 . . Volleys Fired 28 | 14 14 . Largest 2 | 1 2 . Hottest 80 | 20 80 . Shots Fired 34 | 14 20 . Gun 28 | 14 14 . Cannon 6 | . 6 . Launcher . | . . . Special . | . . . Kinetic 28 | 14 14 . Thermal 6 | . 6 . Explosive . | . . . Electromagnetic . | . . . Robot Hit Streak 12 | 12 9 . Robot Miss Streak 3 | 1 3 . Penetration Max . | . . . Secondary Targets . | . . . Shots Hit Robots 27 | 13 14 . Core Hits 13 | 6 7 . Critical Kills . | . . . Critical Parts Destroyed . | . . . Critical Strikes . | . . . Melee Attacks . | . . . Impact . | . . . Slashing . | . . . Piercing . | . . . Sneak Attacks . | . . . Combat Hostiles . | . . . Follow-up Attacks . | . . . Damage Inflicted 254 | 102 152 . Guns 167 | 102 65 . Cannons 87 | . 87 . Explosions . | . . . Melee . | . . . Ramming . | . . . Kinetic 167 | 102 65 . Thermal 87 | . 87 . Explosive . | . . . Electromagnetic . | . . . Impact . | . . . Slashing . | . . . Piercing . | . . . Highest Corruption . | . . . Average Corruption . | . . . Corruption Purged . | . . . Corruption Blocked . | . . . Overload Shots . | . . . Overflow Damage . | . . . Projectiles . | . . . Explosions . | . . . Melee . | . . . Knockbacks . | . . . Impact . | . . . Kinetic . | . . . Secondary . | . . . Self-Inflicted Damage . | . . . Shots . | . . . Rammed . | . . . Targets Rammed . | . . . Kicked . | . . . Crushed . | . . . Highest Temperature 134 | . 134 . Average Temperature 57 | . 57 . Received Heat Transfer 72 | . 63 9 Siege Activations . | . . . Robots Corrupted . | . . . Combat Hostiles . | . . . Parts Fried . | . . . Impact Corruptions . | . . . Robots Melted . | . . . Combat Hostiles . | . . . Parts Melted . | . . . Heat Transferred 185 | . 185 . Parts Sabotaged . | . . . Parts Stolen . | . . . Parts Stripped . | . . . Power Chain Reactions . | . . . Alert | -11 -10 -10 ------- Run | Yrd Mat Min Peak Influence 43 | 15 36 43 Initial 13 | . 9 13 Average 11 | 5 12 20 Maximum Alert Level . | . . . Low Security (%) 100 | 100 100 100 Level 1 . | . . . Level 2 . | . . . Level 3 . | . . . Level 4 . | . . . Level 5 . | . . . High Security . | . . . Max Security . | . . . Squads Dispatched 2 | . 2 . Investigation 2 | . 2 . Extermination . | . . . Reinforcement . | . . . Assault . | . . . Garrison . | . . . Intercept . | . . . Searches Triggered . | . . . Construction Impeded . | . . . Haulers Reinforced . | . . . Active Scanning Responses . | . . . Cargo Convoy Interrupts . | . . . Stealth | -11 -10 -10 --------- Run | Yrd Mat Min Distress Signals 1 | . 1 . Communications Jammed . | . . . Distress Signals . | . . . Times Spotted 12 | . 7 5 Peak Tracking Total 5 | . 5 4 Tactical Retreats . | . . . Traps | -11 -10 -10 ------- Run | Yrd Mat Min Traps Triggered 1 | . 1 . Indirectly . | . . . Trap Hack Attempts . | . . . Triggered . | . . . Disarmed . | . . . Reprogrammed . | . . . Reused . | . . . Traps Extracted . | . . . Installed . | . . . Triggered . | . . . Machines | -11 -10 -10 ---------- Run | Yrd Mat Min Machines Disabled . | . . . Max in Single Turn . | . . . Machines Repaired . | . . . Machines Dismantled . | . . . Machines Sabotaged . | . . . Overloaded Fab Kills . | . . . Hacking | -11 -10 -10 --------- Run | Yrd Mat Min Machines Accessed 3 | . 3 . Terminals 2 | . 2 . Fabricators . | . . . Repair Stations . | . . . Recycling Units 1 | . 1 . Scanalyzers . | . . . Garrison Access . | . . . Total Hacks 8 | . 8 . Successful 4 | . 4 . Failed 4 | . 4 . Catastrophic 1 | . 1 . Database Lockouts . | . . . Manual 4 | . 4 . Terminals 4 | . 4 . Fabricators . | . . . Repair Stations . | . . . Recycling Units 4 | . 4 . Scanalyzers . | . . . Garrison Access . | . . . Terminal Hacks 1 | . 1 . Terminal Index 1 | . 1 . Fabricator Hacks . | . . . Repair Station Hacks . | . . . Recycling Unit Hacks 3 | . 3 . Process 1 | . 1 . Report Inventory 1 | . 1 . Retrieve Matter 1 | . 1 . Scanalyzer . | . . . Garrison Access Hacks . | . . . Unauthorized Hacks . | . . . Terminals . | . . . Fabricators . | . . . Repair Stations . | . . . Recycling Units . | . . . Scanalyzers . | . . . Garrison Access . | . . . Data Cores Recovered . | . . . Used . | . . . Hacking Detections 1 | . 1 . Full Trace Events 1 | . 1 . Feedback Events . | . . . Feedback Blocked . | . . . Robot Schematics Acquired . | . . . Robots Built . | . . . Authchips . | . . . Time . | . . . Total Robot Build Rating . | . . . Part Schematics Acquired . | . . . Parts Built . | . . . Authchips . | . . . Time . | . . . Total Part Build Rating . | . . . Parts Repaired . | . . . Time . | . . . Parts Recycled . | . . . Recycled Matter 208 | . 208 . Retrieved Matter 208 | . 208 . Retrieved Components . | . . . Parts Scanalyzed . | . . . Part Schematics Acquired . | . . . Parts Damaged . | . . . Bothacking | -11 -10 -10 ------------ Run | Yrd Mat Min Used RIF Installer . | . . . Robots Hacked . | . . . Non-combat . | . . . Combat . | . . . Robot Hacks Applied . | . . . Relay Couplers Released . | . . . Fabnet Peak Effective % . | . . . Robots Rewired . | . . . Allies Hacked . | . . . Hacks Repelled . | . . . Allies | -11 -10 -10 -------- Run | Yrd Mat Min Total Allies . | . . . Largest Group . | . . . Highest-Rated Group . | . . . Highest-Rated Ally . | . . . Total Orders . | . . . Ally Attacks . | . . . Total Damage . | . . . Kills . | . . . Allies Corrupted . | . . . Allies Melted . | . . . Intel | -11 -10 -10 ------- Run | Yrd Mat Min Robot Analysis Total . | . . . Derelict Logs Recovered 2 | . . 2 Drone Launches . | . . . Drone Recoveries . | . . . Exploration | -11 -10 -10 ------------- Run | Yrd Mat Min Turns Passed 865 | 246 460 159 Spaces Moved 493 | 133 260 100 Core 6 | 5 . 1 Treads 483 | 128 260 95 Legs . | . . . Wheels 4 | . . 4 Hover . | . . . Flight . | . . . Fastest Speed 50 | 50 160 80 Average Speed 158 | 157 160 157 Slowest Speed 200 | 160 160 200 Overloaded Moves . | . . . Propulsion Burnouts . | . . . Robots Hopped . | . . . Cave-ins Triggered . | . . . Exploration Rate (%) 23 | 5 34 32 Regions Visited 2 Branch Regions 1 Pre-discovered Areas 1 | . . 1 Known Exits Taken . | . . . Unknown Exits Taken 2 | 1 1 . Scrap Searched . | . . . Spaces Dug . | . . . Terrain Destroyed . | . . . Melee . | . . . Projectile . | . . . AOE . | . . . Terrain Rammed . | . . . Walls Destroyed . | . . . Machines Disabled . | . . . Actions | -11 -10 -10 --------- Run | Yrd Mat Min Total 544 | 156 286 102 Wait 4 | . 4 . Move 491 | 132 259 100 Hop . | . . . Pick Up 9 | 4 5 . Fast Attach 7 | 6 1 . Attach 2 | . . 2 Detach . | . . . Swap 2 | . 2 . Drop 1 | . 1 . Fire 28 | 14 14 . Melee . | . . . Ram . | . . . Kick . | . . . Crush . | . . . Escape Stasis . | . . . Rewire . | . . . Trap . | . . . Miscellaneous . | . . . Route ------- -11/Scrapyard -10/Materials -10/Mines (discovered 1 exit: [*Mat]) History --------- Turn | Location | Event 17 | -11/Scrapyard | Discovered new exit (range 16) 247 | -11/Scrapyard | Entered Materials 305 | -10/Materials | Build established: Mutant 691 | -10/Materials | Discovered new exit (range 11) 707 | -10/Materials | Entered Mines 727 | -10/Mines | Discovered new exit (range 5) 730 | -10/Mines | Learned Materials emergency access door positions 751 | -10/Mines | A weapon hastily lodged in a ceiling crevice suddenly fell to the ground 771 | -10/Mines | Learned location of Storage (-9) 787 | -10/Mines | Joined a pair of Derelicts in attacking an 0b10 outpost 817 | -10/Mines | Assembled infested the area 860 | -10/Mines | Core integrity fell below 50% 865 | -10/Mines | Core integrity fell below 20% 866 | -10/Mines | Destroyed by D-53 Grenadier with Mini Grenade Launcher Last Messages --------------- 00814_ K-01 Serf collects debris. 00817_ ALERT: Infestation in the mines, dispatching Demolisher response squad. 00817_ K-01 Serf collects debris. 00841_ 6G-1MD(g) destroyed. 00847_ R-06 Scavenger destroyed. 00853_ Lgt. Armor Plating destroyed. 00853_ T-07 Excavator destroyed. 00854_ The unstable cave ceiling collapses. 00855_ U-05 Engineer lays Concrete. 00856_ The unstable cave ceiling collapses. 00856_ U-05 Engineer lays Concrete. 00857_ Beam Cannon destroyed. 00857_ U-05 Engineer destroyed. 00857_ R-06 Scavenger destroyed. 00858_ The unstable cave ceiling collapses. 00858_ Lgt. Treads destroyed. 00860_ Ion Engine destroyed. 00861_ The unstable cave ceiling collapses. 00864_ Wheel destroyed. Map ----- +----------------------------------------------------+ | | | | | | | | | | | | | | | | | | | | | | | | | | | | | | | | | | | | | ?????????????????????????????????????????????????? | | ?????????????????????????????####????????????????? | | ????????????????????????????## ##?????####??????? | | ?????????######??????######## ##???## ##?????? | | ???#????##"!*"##?##### ## [ #???# #????## | | ??## ???#!!%=!]### # #???# #???## | | ??# ??#! [!! #??## #???# | | ??# ?##= % @ # ##?## < #????# | | ??# ## # #### #????## | | ??# # %* ## ####### | | ???# d ####### | | ???# d ###?????## # | | ???# ##????????############## | | ####??????????????????????# | | ## ## # ##?????????????????????????? | | ??## ??## # ##??????????????????????????? | | ???##???# # ##?????????????????????????? | | ????????### ##????????????????????????? | | ????????? ##???????????????????????? | | ????????## *= a ##??????????????????????? | | ???????### [%! ## #??????????????????????? | | ??????## * ## #??????????????????????? | | ?????## = #??????????????????????? | | ?##### =%| ##?????????????????????? | | ?# * #?????????????????????? | | # #?????????????????????? | | # #?????????????????????? | | ## ## ##?????????????????????? | | ?# #?### ##??????????????????????? | | ?## #????## #####???????????????????????? | | ??###??????#### ###???????????????????????????? | | ??????????????# ###?????????????????????????????? | +----------------------------------------------------+ Best States ------------- Heat Dissipation 25 Energy Generation 10 Energy Capacity 250 Matter Stores 300 Matter Capacity 300 Sight Range 16 Terrain Scan Density 10 Armor Coverage 150 Evasion (%) 40 Recoil Reduction 2 Item Schematics ----------------- None Robot Schematics ------------------ None Fabricated ------------ Nothing Alien Tech Used ----------------- None Achievements -------------- None Challenges ------------ None Game ------ Seed GuidedLaserTreads Manual? 0 Play Time 00:10:06 Cumulative 19.1 hours Start 2024.05.17 @ 17:04:58 End 2024.05.17 @ 18:06:50 Sessions 1 Manual Loads 0 Difficulty Rogue Special Mode None Game No. 38 Rogue 38 Adventurer 0 Explorer 0 Win Type - Total 0 Types 0/0/0/0/0/0/0/0/0 Lore% 15 Gallery% 16 Achievement% 18 Wizard Run 0 Options --------- Layout 0 ASCII 0 Keyboard 0 Movement Arrows Keybinds 0 Fullscreen 2 Font 18/SmallcapsGlow Map View 76x50 Zoom Use 0% Tactical HUD 1 Map Filters NONE Filters NONE Steam 1 RUN: 38eea7dc-8005-4b79-9c96-79b871736789